fUST/lending_fUST_20250228
["ID","MTS","AMOUNT","RATE_DAILY","PERIOD"]
[354815753,1740714647618,-500.0,0.00153666,120]
[354815754,1740714647628,-719.94,0.00153666,120]
[354815755,1740714647639,-500.0,0.00153666,120]
[354815756,1740714647649,-500.0,0.00153666,120]
[354815757,1740714647660,-713.99,0.00153666,120]
[354815758,1740714647669,-814.71,0.00153666,120]
[354815759,1740714647678,-500.0,0.00153666,120]
[354815760,1740714647688,-952.78,0.00153666,120]
[354815761,1740714647699,-710.07,0.00153666,120]
[354815762,1740714647710,-500.0,0.00153666,120]
[354815763,1740714647719,-500.0,0.00153666,120]
[354815764,1740714647728,-500.0,0.00153666,120]
[354815765,1740714647737,-1347.28,0.00153666,120]
[354815766,1740714647749,-500.0,0.00153666,120]
[354815767,1740714647759,-500.0,0.00153666,120]
[354815768,1740714647768,-615.26,0.00153666,120]
[354815769,1740714647777,-500.0,0.00153666,120]
[354815770,1740714647787,-500.0,0.00153666,120]
[354815771,1740714647796,-598.64,0.00153666,120]
[354815772,1740714647806,-559.23,0.00153666,120]
[354815773,1740714647815,-500.0,0.00153666,120]
[354815774,1740714647823,-500.0,0.00153666,120]
[354815775,1740714647833,-557.08,0.00153666,120]
[354815776,1740714647842,-500.0,0.00153666,120]
[354815777,1740714647852,-794.93,0.00153666,120]
[354815778,1740714647864,-500.0,0.00153666,120]
[354815779,1740714647873,-500.0,0.00153666,120]
[354815780,1740714647882,-500.0,0.00153666,120]
[354815781,1740714647891,-500.0,0.00153666,120]
[354815782,1740714647900,-500.0,0.00153666,120]
[354815783,1740714647910,-500.0,0.00153666,120]
[354815784,1740714647919,-1280.1,0.00153666,120]
[354815785,1740714647929,-500.0,0.00153666,120]
[354815786,1740714647940,-500.0,0.00153666,120]
[354815787,1740714647953,-1157.93,0.00153666,120]
[354815788,1740714647962,-429.62458653,0.00153666,120]
[354815789,1740714647971,-500.0,0.00153666,120]
[354815790,1740714647980,-500.0,0.00153666,120]
[354815791,1740714647990,-500.0,0.00153666,120]
[354815792,1740714647999,-604.44,0.00153666,120]
[354815793,1740714648009,-500.0,0.00153666,120]
[354815794,1740714648018,-500.0,0.00153666,120]
[354815795,1740714648028,-820.88,0.00153666,120]
[354815796,1740714648038,-5534.98,0.00153666,120]
[354815797,1740714648048,-500.0,0.00153666,120]
[354815798,1740714648058,-512.36893885,0.00153666,120]
[354815799,1740714648067,-702.83,0.00153666,120]
[354815800,1740714648089,-486.41790852,0.00153666,120]
[354815801,1740714648099,-500.0,0.00153666,120]
[354815802,1740714648108,-500.0,0.00153666,120]
[354815803,1740714648118,-658.92,0.00153666,120]
[354815804,1740714648127,-500.0,0.00153666,120]
[354815805,1740714648137,-13649.77,0.00153666,7]
[354815806,1740714648147,-500.0,0.00153666,120]
[354815807,1740714648156,-500.0,0.00153666,120]
[354815808,1740714648166,-500.0,0.00153666,120]
[354815809,1740714648175,-2298.66,0.00153666,120]
[354815810,1740714648184,-760.27,0.00153666,120]
[354815811,1740714648194,-500.0,0.00153666,120]
[354815812,1740714648205,-500.0,0.00153666,120]
[354815813,1740714648215,-500.0,0.00153666,120]
[354815814,1740714648224,-500.0,0.00153666,120]
[354815815,1740714648234,-500.0,0.00153666,120]
[354815816,1740714648244,-500.0,0.00153666,120]
[354815817,1740714648253,-907.46,0.00153666,120]
[354815818,1740714648262,-500.0,0.00153666,120]
[354815819,1740714648272,-597.64,0.00153666,120]
[354815820,1740714648282,-2903.54,0.00153666,120]
[354815821,1740714648292,-500.0,0.00153666,120]
[354815822,1740714648302,-9266.4,0.00153666,120]
[354815823,1740714648311,-500.0,0.00153666,120]
[354815824,1740714648321,-500.0,0.00153666,120]
[354815825,1740714648330,-500.0,0.00153666,120]
[354815826,1740714648339,-500.0,0.00153666,120]
[354815827,1740714648349,-4824.43,0.00153666,120]
[354815828,1740714648359,-500.0,0.00153666,120]
[354815829,1740714648369,-1335.37,0.00153666,120]
[354815830,1740714648379,-718.0,0.00153666,120]
[354815831,1740714648388,-1082.86,0.00153666,120]
[354815832,1740714648398,-480.85752717,0.00153666,120]
[354815833,1740714648407,-500.0,0.00153666,120]
[354815834,1740714648416,-991.55,0.00153666,120]
[354815835,1740714648426,-500.0,0.00153666,120]
[354815836,1740714648435,-500.0,0.00153666,120]
[354815837,1740714648444,-500.0,0.00153666,30]
[354815838,1740714648456,-500.0,0.00153666,120]
[354815839,1740714648465,-500.0,0.00153666,120]
[354815840,1740714648475,-500.0,0.00153666,120]
[354815841,1740714648484,-500.0,0.00153666,120]
[354815842,1740714648494,-500.0,0.00153666,120]
[354815843,1740714648505,-559.31,0.00153666,120]
[354815844,1740714648514,-5756.36,0.00153666,120]
[354815845,1740714648523,-500.0,0.00153666,120]
[354815846,1740714648533,-500.0,0.00153666,120]
[354815847,1740714648542,-500.0,0.00153666,120]
[354815848,1740714648551,-500.0,0.00153666,120]
[354815849,1740714648561,-500.0,0.00153666,120]
[354815850,1740714648570,-2151.17,0.00153666,120]
[354815851,1740714648579,-500.0,0.00153666,120]
[354815852,1740714648589,-500.0,0.00153666,120]
[354815853,1740714648598,-408.12831769,0.00153666,120]
[354815854,1740714648685,-706.58,0.00153666,120]
[354815855,1740714648695,-500.0,0.00153666,120]
[354815856,1740714648705,-500.0,0.00153666,120]
[354815857,1740714648715,-500.0,0.00153666,120]
[354815858,1740714648724,-500.0,0.00153666,120]
[354815859,1740714648734,-3902.13,0.00153666,120]
[354815860,1740714648743,-500.0,0.00153666,120]
[354815861,1740714648752,-500.0,0.00153666,120]
[354815862,1740714648761,-500.0,0.00153666,120]
[354815863,1740714648771,-875.93,0.00153666,120]
[354815864,1740714648780,-583.35,0.00153666,120]
[354815865,1740714648789,-500.0,0.00153666,120]
[354815866,1740714648799,-173.62963501,0.00153666,120]
[354815867,1740714648808,-500.0,0.00153666,120]
[354815868,1740714648817,-500.0,0.00153666,120]
[354815869,1740714648827,-500.0,0.00153666,120]
[354815870,1740714648836,-2508.91,0.00153666,120]
[354815871,1740714648847,-602.01,0.00153666,120]
[354815872,1740714648859,-9170.72,0.00153666,120]
[354815873,1740714648873,-500.0,0.00153666,120]
[354815874,1740714648883,-77991.08,0.00153666,7]
[354815875,1740714648893,-500.0,0.00153666,120]
[354815876,1740714648902,-625.01,0.00153666,120]
[354815877,1740714648911,-500.0,0.00153666,120]
[354815878,1740714648921,-527.99,0.00153666,120]
[354815879,1740714648932,-677.29,0.00153666,120]
[354815880,1740714648943,-500.0,0.00153666,120]
[354815881,1740714648954,-1965.73,0.00153666,120]
[354815882,1740714648963,-1394.69,0.00153666,120]
[354815883,1740714648973,-500.0,0.00153666,120]
[354815884,1740714648983,-500.0,0.00153666,120]
[354815885,1740714648992,-500.0,0.00153666,120]
[354815886,1740714649004,-500.0,0.00153666,120]
[354815887,1740714649014,-500.0,0.00153666,120]
[354815888,1740714649024,-647.17,0.00153666,120]
[354815889,1740714649034,-2544.36,0.00153666,120]
[354815890,1740714649043,-622.43,0.00153666,120]
[354815891,1740714649053,-500.0,0.00153666,120]
[354815892,1740714649062,-500.0,0.00153666,120]
[354815893,1740714649080,-500.0,0.00153666,120]
[354815894,1740714649090,-500.0,0.00153666,120]
[354815895,1740714649099,-500.0,0.00153666,120]
[354815896,1740714649108,-500.0,0.00153666,120]
[354815897,1740714649118,-1215.84,0.00153666,120]
[354815898,1740714649127,-500.0,0.00153666,120]
[354815899,1740714649137,-500.0,0.00153666,120]
[354815900,1740714649146,-500.0,0.00153666,120]
[354815901,1740714649156,-500.0,0.00153666,120]
[354815902,1740714649165,-982.74,0.00153666,120]
[354815903,1740714649174,-500.0,0.00153666,120]
[354815904,1740714649183,-500.0,0.00153666,120]
[354815905,1740714649194,-572.33,0.00153666,120]
[354815906,1740714649204,-500.0,0.00153666,120]
[354815907,1740714649213,-500.0,0.00153767,120]
[354815908,1740714649223,-500.0,0.00153767,120]
[354815909,1740714649232,-500.0,0.00153767,120]
[354815910,1740714649241,-500.0,0.00153767,120]
[354815911,1740714649251,-510.89830513,0.00153767,120]
[354815912,1740714649260,-500.0,0.00153767,120]
[354815913,1740714649270,-250.0,0.00153767,120]
[354815914,1740714649280,-500.0,0.00153767,120]
[354815915,1740714649289,-500.0,0.00153767,120]
[354815916,1740714649298,-500.0,0.00153767,120]
[354815917,1740714649308,-500.0,0.00153767,120]
[354815918,1740714649317,-500.0,0.00153767,120]
[354815919,1740714649327,-500.0,0.00153767,120]
[354815920,1740714649336,-500.0,0.00153767,120]
[354815921,1740714649345,-500.0,0.00153767,120]
[354815922,1740714649355,-500.0,0.00153767,120]
[354815923,1740714649366,-500.0,0.00153767,120]
[354815924,1740714649375,-500.0,0.00153767,120]
[354815925,1740714649385,-500.0,0.00153767,120]
[354815926,1740714649394,-500.0,0.00153767,120]
[354815927,1740714649404,-500.0,0.00153767,120]
[354815928,1740714649413,-500.0,0.00153767,120]
[354815929,1740714649423,-500.0,0.00153767,120]
[354815930,1740714649433,-500.0,0.00153767,120]
[354815931,1740714649442,-151.45045962,0.00153767,120]
[354815932,1740714649451,-500.0,0.00153767,120]
[354815933,1740714649462,-500.0,0.00153767,120]
[354815934,1740714649472,-500.0,0.00153767,120]
[354815935,1740714649481,-500.0,0.00153767,120]
[354815936,1740714649491,-500.0,0.00153767,120]
[354815937,1740714649501,-500.0,0.00153767,120]
[354815938,1740714649511,-513.08897261,0.00153767,120]
[354815939,1740714649520,-500.0,0.00153767,120]
[354815940,1740714649529,-500.0,0.00153767,120]
[354815941,1740714649539,-500.0,0.00153767,120]
[354815942,1740714649549,-500.0,0.00153767,120]
[354815943,1740714649558,-500.0,0.00153767,120]
[354815944,1740714649567,-500.0,0.00153767,120]
[354815945,1740714649576,-500.0,0.00153767,120]
[354815946,1740714649586,-500.0,0.00153767,120]
[354815947,1740714649595,-500.0,0.00153767,120]
[354815948,1740714649604,-500.0,0.00153767,120]
[354815949,1740714649613,-500.0,0.00153767,120]
[354815950,1740714649622,-500.0,0.00153767,120]
[354815951,1740714649631,-500.0,0.00153767,120]
[354815952,1740714649640,-500.0,0.00153767,120]
[354815953,1740714649649,-500.0,0.00153767,120]
[354815954,1740714649659,-555.77,0.00153767,120]
[354815955,1740714649669,-500.0,0.00153767,120]
[354815956,1740714649679,-500.0,0.00153767,120]
[354815957,1740714649689,-500.0,0.00153767,120]
[354815958,1740714649698,-500.0,0.00153767,120]
[354815959,1740714649710,-693.81,0.00153767,120]
[354815960,1740714649719,-500.0,0.00153767,120]
[354815961,1740714649728,-500.0,0.00153767,120]
[354815962,1740714649737,-500.0,0.00153767,120]
[354815963,1740714649746,-500.0,0.00153767,120]
[354815964,1740714649755,-500.0,0.00153767,120]
[354815965,1740714649764,-580.15,0.00153767,120]
[354815966,1740714649774,-500.0,0.00153767,120]
[354815967,1740714649783,-500.0,0.00153767,120]
[354815968,1740714649793,-500.0,0.00153767,120]
[354815969,1740714649802,-500.0,0.00153767,120]
[354815970,1740714649811,-500.0,0.00153767,120]
[354815971,1740714649820,-500.0,0.00153767,120]
[354815972,1740714649830,-500.0,0.00153767,120]
[354815973,1740714649839,-421.8481566,0.00153767,120]
[354815974,1740714649849,-527.86,0.00153767,120]
[354815975,1740714649859,-500.0,0.00153767,120]
[354815976,1740714649869,-500.0,0.00153767,120]
[354815977,1740714649878,-500.0,0.00153767,120]
[354815978,1740714649888,-500.0,0.00153767,120]
[354815979,1740714649899,-500.0,0.00153767,120]
[354815980,1740714649909,-500.0,0.00153767,120]
[354815981,1740714649918,-500.0,0.00153767,120]
[354815982,1740714649927,-500.0,0.00153767,120]
[354815983,1740714649937,-500.0,0.00153767,120]
[354815984,1740714649946,-1497.1,0.00153767,120]
[354815985,1740714649958,-500.0,0.00153767,120]
[354815986,1740714649968,-500.0,0.00153767,120]
[354815987,1740714649977,-500.0,0.00153767,120]
[354815988,1740714649987,-500.0,0.00153767,120]
[354815989,1740714649996,-1195.75,0.00153767,120]
[354815990,1740714650005,-500.0,0.00153767,120]
[354815991,1740714650014,-1098.3,0.00153767,120]
[354815992,1740714650023,-500.0,0.00153767,120]
[354815993,1740714650033,-500.0,0.00153767,120]
[354815994,1740714650043,-537.87,0.00153767,120]
[354815995,1740714650052,-500.0,0.00153767,120]
[354815996,1740714650061,-500.0,0.00153767,120]
[354815997,1740714650071,-500.0,0.00153767,120]
[354815998,1740714650081,-500.0,0.00153767,120]
[354815999,1740714650090,-500.0,0.00153767,120]
[354816000,1740714650099,-796.92,0.00153767,120]
[354816001,1740714650108,-1364.8,0.00153767,120]
[354816002,1740714650118,-500.0,0.00153767,120]
[354816003,1740714650127,-500.0,0.00153767,120]
[354816004,1740714650136,-500.0,0.00153767,120]
[354816005,1740714650145,-500.0,0.00153767,120]
[354816006,1740714650156,-500.0,0.00153767,120]
[354816007,1740714650165,-500.0,0.00153767,120]
[354816008,1740714650174,-500.0,0.00153767,2]
[354816009,1740714650184,-500.0,0.00153767,120]
[354816010,1740714650194,-500.0,0.00153767,120]
[354816011,1740714650205,-500.0,0.00153767,120]
[354816012,1740714650214,-500.0,0.00153767,120]
[354816013,1740714650223,-500.0,0.00153767,120]
[354816014,1740714650304,-500.0,0.00153767,120]
[354816015,1740714650314,-500.0,0.00153767,120]
[354816016,1740714650323,-502.56258987,0.00153767,120]
[354816017,1740714650333,-500.0,0.00153767,120]
[354816018,1740714650342,-500.0,0.00153767,120]
[354816019,1740714650351,-500.0,0.00153767,120]
[354816020,1740714650360,-2066.9,0.00153767,15]
[354816021,1740714650369,-500.0,0.00153767,120]
[354816022,1740714650379,-500.0,0.00153767,120]
[354816023,1740714650389,-500.0,0.00153767,120]
[354816024,1740714650398,-500.0,0.00153767,120]
[354816025,1740714650408,-500.0,0.00153767,120]
[354816026,1740714650419,-500.0,0.00153767,120]
[354816027,1740714650428,-500.0,0.00153767,120]
[354816028,1740714650438,-500.0,0.00153767,120]
[354816029,1740714650447,-200.05086431,0.00153767,120]
[354816030,1740714650458,-553.82,0.00153767,120]
[354816031,1740714650467,-500.0,0.00153767,120]
[354816032,1740714650477,-574.15,0.00153767,120]
[354816033,1740714650486,-636.28,0.00153767,120]
[354816034,1740714650496,-500.0,0.00153767,120]
[354816035,1740714650506,-238.76640353,0.00153767,120]
[354816036,1740714650666,-261.23359647,0.00153767,120]
[354816037,1740714650677,-148.12726521,0.00153767,120]
[354816038,1740714650690,-351.87273479,0.00153767,120]
[354816039,1740714650701,-500.0,0.00153767,120]
[354816040,1740714650712,-415.45628732,0.00153767,120]
[354816041,1740714650903,-210.70565996,0.00153767,120]
[354816042,1740714650915,-6.26805272,0.00153767,120]
[354816043,1740714650924,-500.0,0.00153767,120]
[354816044,1740714650934,-500.0,0.00153767,120]
[354816045,1740714650944,-500.0,0.00153767,120]
[354816046,1740714650953,-1000.0,0.00153767,60]
[354816047,1740714650963,-500.0,0.00153767,120]
[354816048,1740714650972,-500.0,0.00153767,120]
[354816049,1740714650982,-949.38,0.00153767,120]
[354816050,1740714650991,-500.0,0.00153767,120]
[354816051,1740714651000,-500.0,0.00153767,120]
[354816052,1740714651009,-500.0,0.00153767,120]
[354816053,1740714651018,-500.0,0.00153767,120]
[354816054,1740714651027,-648.61,0.001538,30]
[354816055,1740714651036,-206.016792,0.00158616,120]
[354816056,1740714651046,-3697.16,0.00159145,120]
[354816057,1740714651056,-239.81,0.0016,60]
[354816058,1740714651068,-222.22,0.0016,60]
[354816059,1740714651077,-824.71358068,0.0016,60]
[354816060,1740714651099,-132.57788924,0.0016,60]
[354816061,1740714651143,-224.27853008,0.0016,60]
[354816062,1740714651152,-417.36641308,0.00164164,120]
[354816063,1740714651161,-1925.43440868,0.00164624,120]
[354816064,1740714651172,-1771.72559132,0.00164624,120]
[354816065,1740714651181,-179.40795375,0.00165209,60]
[354816066,1740714651191,-206.016792,0.00165826,120]
[354816067,1740714651200,-1271.26,0.00166,60]
[354816068,1740714651210,-2271.58966293,0.00170104,120]
[354816069,1740714651289,-937.0971199,0.00170104,120]
[354816070,1740714651422,-488.47321717,0.00170104,120]
[354816071,1740714651431,-21.22678283,0.00173035,120]
[354816072,1740714651449,-184.79000917,0.00173035,120]
[354816073,1740714651460,-3697.16,0.00175583,120]
[354816074,1740714651470,-3314.2,0.00178323,120]
[354816075,1740714651479,-568.51,0.00178323,120]
[354816076,1740714651488,-500.0,0.00178324,120]
[354816077,1740714651498,-500.0,0.00178324,120]
[354816078,1740714651507,-572.33,0.00178324,120]
[354816079,1740714651516,-500.0,0.00178324,120]
[354816080,1740714651525,-993.9821,0.0018,120]
[354816081,1740714651534,-206.016792,0.00180245,120]
[354816082,1740714651544,-3697.30938992,0.00181063,120]
[354816083,1740714651553,-206.016792,0.00187455,120]
[354816084,1740714651562,-21968.635604,0.00192904,60]
[354816085,1740714651571,-206.016792,0.00194665,120]
[354816086,1740714651580,-486.46,0.001957,120]
[354816087,1740714651589,-2000.0,0.002,120]
[354816088,1740714651598,-5002.0,0.002,120]
[354816089,1740714651686,-2869.69022666,0.002,60]
[354816090,1740714651845,-160.04576424,0.00099,120]
[354816091,1740714651860,-189.95423576,0.00099,120]
[354816092,1740714651871,-350.0,0.00099,120]
[354816093,1740714651882,-44090.20602642,0.002,60]
[354816094,1740714651894,-7140.0000006,0.002,60]
[354816095,1740714651905,-259.96374632,0.002,60]
[354816096,1740714651914,-206.016792,0.00201875,120]
[354816097,1740714651923,-1874.01946148,0.0020298,120]
[354816098,1740714651937,-318.03053852,0.0020298,120]
[354816099,1740714651947,-1000.0,0.0020298,2]
[354816100,1740714651956,-850.23,0.0020298,120]
[354816101,1740714651965,-778.26,0.0020298,120]
[354816102,1740714651974,-999.81,0.0020298,120]
[354816103,1740714651983,-500.0,0.0020298,120]
[354816104,1740714651992,-500.0,0.0020298,120]
[354816105,1740714652002,-1194.28,0.0020298,120]
[354816106,1740714652012,-500.0,0.0020298,21]
[354816107,1740714652022,-3314.2,0.0020298,120]
[354816108,1740714652030,-568.51,0.0020298,120]
[354816109,1740714652040,-249.41145976,0.00202981,120]
[354816110,1740714652051,-250.58854024,0.00202981,120]
[354816111,1740714652061,-500.0,0.00202981,120]
[354816112,1740714652071,-500.0,0.00202981,120]
[354816113,1740714652080,-500.0,0.00202981,120]
[354816114,1740714652089,-500.0,0.00202981,120]
[354816115,1740714652099,-346.87145976,0.00202981,120]
[354816116,1740714652266,-1085.68,0.0006489,10]
[354816117,1740714652275,-162.27,0.00093558,120]
[354816118,1740714652284,-467.84854024,0.00202981,120]
[354816119,1740714652294,-148.47346753,0.00202981,120]
[354816120,1740714652309,-771.8906084,0.0009863,60]
[354816121,1740714652318,-302.01118107,0.00202981,120]
[354816122,1740714652327,-500.0,0.00202981,120]
[354816123,1740714652336,-937.14,0.00202981,120]
[354816124,1740714652345,-500.0,0.00202981,120]
[354816125,1740714652354,-500.0,0.00202981,120]
[354816126,1740714652363,-500.0,0.00202981,120]
[354816127,1740714652373,-501.77,0.00202981,120]
[354816128,1740714652382,-500.0,0.00202981,120]
[354816129,1740714652392,-958.6,0.00202981,120]
[354816130,1740714652402,-667.96,0.00202981,120]
[354816131,1740714652412,-500.0,0.00202981,120]
[354816132,1740714652423,-500.0,0.00202981,120]
[354816133,1740714652433,-509.47151388,0.00202981,120]
[354816134,1740714652443,-719.94,0.00202981,120]
[354816135,1740714652452,-500.0,0.00202981,120]
[354816136,1740714652463,-500.0,0.00202981,120]
[354816137,1740714652472,-713.99,0.00202981,120]
[354816138,1740714652482,-814.71,0.00202981,120]
[354816139,1740714652491,-500.0,0.00202981,120]
[354816140,1740714652500,-952.78,0.00202981,120]
[354816141,1740714652509,-710.07,0.00202981,120]
[354816142,1740714652519,-500.0,0.00202981,120]
[354816143,1740714652528,-500.0,0.00202981,120]
[354816144,1740714652537,-500.0,0.00202981,120]
[354816145,1740714652546,-1347.28,0.00202981,120]
[354816146,1740714652556,-500.0,0.00202981,120]
[354816147,1740714652566,-500.0,0.00202981,120]
[354816148,1740714652575,-615.26,0.00202981,120]
[354816149,1740714652585,-500.0,0.00202981,120]
[354816150,1740714652594,-598.64,0.00202981,120]
[354816151,1740714652604,-559.23,0.00202981,120]
[354816152,1740714652613,-500.0,0.00202981,120]
[354816153,1740714652622,-500.0,0.00202981,120]
[354816154,1740714652631,-557.08,0.00202981,120]
[354816155,1740714652641,-500.0,0.00202981,120]
[354816156,1740714652650,-794.93,0.00202981,120]
[354816157,1740714652660,-500.0,0.00202981,120]
[354816158,1740714652669,-500.0,0.00202981,120]
[354816159,1740714652678,-500.0,0.00202981,120]
[354816160,1740714652687,-500.0,0.00202981,120]
[354816161,1740714652697,-1280.1,0.00202981,120]
[354816162,1740714652706,-500.0,0.00202981,120]
[354816163,1740714652716,-500.0,0.00202981,120]
[354816164,1740714652725,-500.0,0.00202981,120]
[354816165,1740714652734,-500.0,0.00202981,120]
[354816166,1740714652743,-292.49450135,0.00202981,120]
[354816167,1740714652753,-604.44,0.00202981,120]
[354816168,1740714652762,-500.0,0.00202981,120]
[354816169,1740714652771,-500.0,0.00202981,120]
[354816170,1740714652780,-820.88,0.00202981,120]
[354816171,1740714652789,-5534.98,0.00202981,120]
[354816172,1740714652800,-500.0,0.00202981,120]
[354816173,1740714652808,-500.0,0.00202981,120]
[354816174,1740714652818,-658.92,0.00202981,120]
[354816175,1740714652827,-500.0,0.00202981,120]
[354816176,1740714652837,-13649.77,0.00202981,7]
[354816177,1740714652846,-500.0,0.00202981,120]
[354816178,1740714652855,-500.0,0.00202981,120]
[354816179,1740714652868,-500.0,0.00202981,120]
[354816180,1740714652877,-2298.66,0.00202981,120]
[354816181,1740714652887,-760.27,0.00202981,120]
[354816182,1740714652896,-522.6053755,0.00202981,120]
[354816183,1740714652908,-500.0,0.00202981,120]
[354816184,1740714652917,-500.0,0.00202981,120]
[354816185,1740714652927,-500.0,0.00202981,120]
[354816186,1740714652937,-500.0,0.00202981,120]
[354816187,1740714652946,-500.0,0.00202981,120]
[354816188,1740714652956,-907.46,0.00202981,120]
[354816189,1740714652965,-500.0,0.00202981,120]
[354816190,1740714652975,-597.64,0.00202981,120]
[354816191,1740714652984,-500.0,0.00202981,120]
[354816192,1740714652994,-2903.54,0.00202981,120]
[354816193,1740714653003,-9266.4,0.00202981,120]
[354816194,1740714653013,-500.0,0.00202981,120]
[354816195,1740714653022,-500.0,0.00202981,120]
[354816196,1740714653032,-500.0,0.00202981,120]
[354816197,1740714653110,-500.0,0.00202981,120]
[354816198,1740714653120,-4824.43,0.00202981,120]
[354816199,1740714653130,-500.0,0.00202981,120]
[354816200,1740714653140,-1335.37,0.00202981,120]
[354816201,1740714653149,-718.0,0.00202981,120]
[354816202,1740714653158,-1082.86,0.00202981,120]
[354816203,1740714653167,-500.0,0.00202981,120]
[354816204,1740714653177,-991.55,0.00202981,120]
[354816205,1740714653187,-500.0,0.00202981,120]
[354816206,1740714653196,-500.0,0.00202981,120]
[354816207,1740714653207,-500.0,0.00202981,30]
[354816208,1740714653217,-500.0,0.00202981,120]
[354816209,1740714653226,-500.0,0.00202981,120]
[354816210,1740714653235,-500.0,0.00202981,120]
[354816211,1740714653245,-500.0,0.00202981,120]
[354816212,1740714653255,-500.0,0.00202981,120]
[354816213,1740714653265,-559.31,0.00202981,120]
[354816214,1740714653275,-5756.36,0.00202981,120]
[354816215,1740714653285,-500.00000001,0.00202981,120]
[354816216,1740714653295,-500.0,0.00202981,120]
[354816217,1740714653306,-500.0,0.00202981,120]
[354816218,1740714653315,-500.0,0.00202981,120]
[354816219,1740714653325,-500.0,0.00202981,120]
[354816220,1740714653334,-2151.17,0.00202981,120]
[354816221,1740714653345,-500.0,0.00202981,120]
[354816222,1740714653355,-500.0,0.00202981,120]
[354816223,1740714653365,-706.58,0.00202981,120]
[354816224,1740714653374,-500.0,0.00202981,120]
[354816225,1740714653383,-500.0,0.00202981,120]
[354816226,1740714653392,-500.0,0.00202981,120]
[354816227,1740714653401,-500.0,0.00202981,120]
[354816228,1740714653411,-3902.13,0.00202981,120]
[354816229,1740714653420,-500.0,0.00202981,120]
[354816230,1740714653429,-500.0,0.00202981,120]
[354816231,1740714653438,-170.81188629,0.00202981,120]
[354816232,1740714653449,-875.93,0.00202981,120]
[354816233,1740714653460,-583.35,0.00202981,120]
[354816234,1740714653470,-500.0,0.00202981,120]
[354816235,1740714653479,-500.0,0.00202981,120]
[354816236,1740714653489,-508.82249222,0.00202981,120]
[354816237,1740714653500,-500.0,0.00202981,120]
[354816238,1740714653509,-2508.91,0.00202981,120]
[354816239,1740714653518,-9170.72,0.00202981,120]
[354816240,1740714653529,-602.01,0.00202981,120]
[354816241,1740714653538,-500.0,0.00202981,120]
[354816242,1740714653547,-77991.08,0.00202981,7]
[354816243,1740714653557,-500.0,0.00202981,120]
[354816244,1740714653566,-625.01,0.00202981,120]
[354816245,1740714653575,-500.0,0.00202981,120]
[354816246,1740714653584,-527.99,0.00202981,120]
[354816247,1740714653593,-677.29,0.00202981,120]
[354816248,1740714653603,-500.0,0.00202981,120]
[354816249,1740714653612,-1965.73,0.00202981,120]
[354816250,1740714653621,-1394.69,0.00202981,120]
[354816251,1740714653631,-500.0,0.00202981,120]
[354816252,1740714653640,-500.0,0.00202981,120]